Cogmind - Beta 13 @@@ ROGUE MODE // 2024.03.06 @ 11:11:10 Player: xolophreny Result: Destroyed by KL-QPG(R) with Subdweller Machine Gun Performance ------------- Evolutions (0) 0 Regions Visited (2) 400 Robots Destroyed (9) 45 Value Destroyed (155) 155 Prototype IDs (2) 40 Alien Tech Used (0) 0 Bonus (0) 0 TOTAL SCORE: 640 Bonus ------- None Cogmind --------- Core Integrity 0/250 Matter 300/300 Energy 98/100 System Corruption 1% Temperature Cool (0) Movement Core (50) Location -10/Subcaves Parts ------- > --- POWER (1) -------- (None) > --- PROPULSION (2) --- (None) > --- UTILITY (2) ------ (None) > --- WEAPON (2) ------- (None) > --- INVENTORY (5) ---- Ion Engine Wheel Sensor Array Peak State ------------ > --- POWER ------------ Ion Engine > --- PROPULSION ------- Subdweller Monowheel Subdweller Monowheel > --- UTILITY ---------- Large Storage Unit Structural Scanner > --- WEAPON ----------- Battle Cannon Slug Cannon > --- INVENTORY -------- Ion Engine Light Ion Engine Wheel Wheel Wheel Wheel Large Storage Unit Subdweller Optics Sensor Array Light Armor Plating Scrap Shield Assault Rifle Barrage Gun Light Cannon [Rating: 15] Favorites ----------- Power Ion Engine Engine Ion Engine Propulsion Wheel Wheel Wheel Utility Structural Scanner Device Structural Scanner Storage Medium Storage Unit Processor Transport Network Coupler Protection Scrap Shield Weapon Light Cannon Energy Gun Medium Laser Ballistic Gun Assault Rifle Ballistic Cannon Light Cannon Special Weapon Mining Laser Build | -11 -10 -10 ------- Run | Yrd Mat Sub Slots Evolved . | . . . Power . | . . . Propulsion . | . . . Utility . | . . . Weapon . | . . . Parts Attached 26 | 11 8 7 Power 1 | 1 . . Engine 1 | 1 . . Core . | . . . Reactor . | . . . Propulsion 5 | 3 . 2 Treads . | . . . Leg . | . . . Wheel 5 | 3 . 2 Hover . | . . . Flight . | . . . Utility 11 | 3 6 2 Device 6 | 2 3 1 Storage 3 | 1 2 . Processor 1 | . 1 . Hackware . | . . . Protection 1 | . . 1 Artifact . | . . . Weapon 9 | 4 2 3 Energy Gun 1 | 1 . . Energy Cannon . | . . . Ballistic Gun 3 | 2 . 1 Ballistic Cannon 4 | . 2 2 Launcher . | . . . Special Weapon 1 | 1 . . Impact Weapon . | . . . Slashing Weapon . | . . . Piercing Weapon . | . . . Special Melee Weapon . | . . . Unidentified Prototypes . | . . . Parts Lost 14 | . . 14 Power 2 | . . 2 Propulsion 3 | . . 3 Utility 4 | . . 4 Weapon 5 | . . 5 Highest Loss Streak 14 | . . 14 To Critical Strikes . | . . . Average Slot Usage (%) 97 | . 100 92 Engine 13 | . 14 13 Wheel 27 | . 28 25 Device 11 | . 10 12 Storage 13 | . 14 13 Processor 2 | . 3 . Energy Gun 4 | . 6 . Ballistic Gun 6 | . 6 5 Ballistic Cannon 16 | . 15 20 Naked Turns 4 | . . 4 Heaviest Build 36 | 15 32 36 Greatest Support 40 | 26 20 40 Greatest Overweight (x) 1 | 1 1 1 Average Overweight (x) . | . . . Largest Inventory Capacity 15 | 8 15 15 Average Capacity 10 | 7 10 14 Most Carried 15 | 8 11 15 Average Carried 9 | 5 8 13 Final Capacity 15 | 8 15 5 Final Carried 11 | 7 11 3 Class Distribution -------------------- 100% | Mutant Dominant Class ---------------- Mutant | -10/Materials Mutant | -10/Subcaves Resources | -11 -10 -10 ----------- Run | Yrd Mat Sub Matter Collected 527 | 316 101 110 Remotely . | . . . Salvage Created 233 | 119 34 80 Parts 23 | 10 6 7 Haulers Intercepted . | . . . Recyclers Shooed . | . . . Parts Field Recycled . | . . . Retrieved Matter . | . . . Parts Self-Destructed 6 | . . 6 Prevented . | . . . Kills | -11 -10 -10 ------- Run | Yrd Mat Sub Combat Hostiles Destroyed 2 | . . 2 Cannons 2 | . . 2 Classes Destroyed 5 | 2 2 1 Tunneler 3 | 3 . . Recycler 1 | 1 . . Operator 1 | . 1 . Watcher 2 | . 2 . Subdweller 2 | . . 2 Best Kill Streak 2 | 2 1 1 Combat Bots Only 1 | . . 1 Max Kills in Single Turn 1 | 1 1 1 Gunslinging . | . . . Exploded . | . . . Melee . | . . . Uniques/NPCs Destroyed . | . . . Combat | -11 -10 -10 -------- Run | Yrd Mat Sub Hostile Shots Fired 62 | . 8 54 Missed 11 | . . 11 Damage Taken 997 | . 89 908 Core 259 | . . 259 Absorbed by Shields . | . . . Core Remaining (%) 100 | 100 . . Volleys Fired 36 | 23 9 4 Largest 2 | 2 2 2 Hottest 100 | 100 70 87 Shots Fired 56 | 30 18 8 Gun 27 | 14 12 1 Cannon 13 | . 6 7 Launcher . | . . . Special 16 | 16 . . Kinetic 27 | 7 12 8 Thermal 29 | 23 6 . Explosive . | . . . Electromagnetic . | . . . Robot Hit Streak 5 | 3 5 3 Robot Miss Streak 4 | 4 4 1 Penetration Max 1 | . . 1 Secondary Targets . | . . . Shots Hit Robots 23 | 8 9 6 Core Hits 11 | 4 3 4 Critical Kills . | . . . Critical Parts Destroyed . | . . . Critical Strikes 2 | 1 . 1 Burn 1 | 1 . . Destroy 1 | . . 1 Melee Attacks . | . . . Impact . | . . . Slashing . | . . . Piercing . | . . . Sneak Attacks . | . . . Combat Hostiles . | . . . Follow-up Attacks . | . . . Damage Inflicted 431 | 115 123 193 Guns 218 | 115 85 18 Cannons 209 | . 38 171 Explosions . | . . . Melee . | . . . Ramming 4 | . . 4 Kinetic 314 | 53 72 189 Thermal 113 | 62 51 . Explosive . | . . . Electromagnetic . | . . . Impact . | . . . Slashing . | . . . Piercing . | . . . Highest Corruption 1 | . . 1 Average Corruption 1 | . . 1 Corruption Purged . | . . . Corruption Blocked . | . . . Overload Shots . | . . . Overflow Damage . | . . . Projectiles . | . . . Explosions . | . . . Melee . | . . . Knockbacks 3 | . 1 2 Impact . | . . . Kinetic 2 | . 1 1 Secondary 1 | . . 1 Self-Inflicted Damage 1 | . . 1 Shots . | . . . Rammed 3 | . . 3 Targets Rammed 3 | . . 3 Kicked . | . . . Crushed . | . . . Highest Temperature 100 | 100 38 . Average Temperature 37 | 44 13 . Received Heat Transfer 162 | . 48 114 Siege Activations . | . . . Robots Corrupted . | . . . Combat Hostiles . | . . . Parts Fried . | . . . Impact Corruptions . | . . . Robots Melted . | . . . Combat Hostiles . | . . . Parts Melted . | . . . Heat Transferred 407 | 259 148 . Parts Sabotaged . | . . . Parts Stolen . | . . . Parts Stripped . | . . . Power Chain Reactions . | . . . Alert | -11 -10 -10 ------- Run | Yrd Mat Sub Peak Influence 83 | 20 83 . Initial 13 | . 13 . Average 30 | 14 36 . Maximum Alert Level . | . . . Low Security (%) 100 | 100 100 . Level 1 . | . . . Level 2 . | . . . Level 3 . | . . . Level 4 . | . . . Level 5 . | . . . High Security . | . . . Max Security . | . . . Squads Dispatched 2 | . 2 . Investigation 2 | . 2 . Extermination . | . . . Reinforcement . | . . . Assault . | . . . Garrison . | . . . Intercept . | . . . Searches Triggered . | . . . Construction Impeded . | . . . Haulers Reinforced . | . . . Active Scanning Responses . | . . . Cargo Convoy Interrupts . | . . . Stealth | -11 -10 -10 --------- Run | Yrd Mat Sub Distress Signals . | . . . Communications Jammed . | . . . Distress Signals . | . . . Times Spotted 18 | . 7 11 Peak Tracking Total 10 | . 4 10 Tactical Retreats . | . . . Traps | -11 -10 -10 ------- Run | Yrd Mat Sub Traps Triggered . | . . . Indirectly . | . . . Trap Hack Attempts . | . . . Triggered . | . . . Disarmed . | . . . Reprogrammed . | . . . Reused . | . . . Traps Extracted . | . . . Installed . | . . . Triggered . | . . . Machines | -11 -10 -10 ---------- Run | Yrd Mat Sub Machines Disabled . | . . . Max in Single Turn . | . . . Machines Repaired . | . . . Machines Dismantled . | . . . Machines Sabotaged . | . . . Overloaded Fab Kills . | . . . Hacking | -11 -10 -10 --------- Run | Yrd Mat Sub Machines Accessed 3 | . 3 . Terminals 3 | . 3 . Fabricators . | . . . Repair Stations . | . . . Recycling Units . | . . . Scanalyzers . | . . . Garrison Access . | . . . Total Hacks 8 | . 8 . Successful 4 | . 4 . Failed 3 | . 3 . Catastrophic . | . . . Database Lockouts 1 | . 1 . Manual 7 | . 7 . Terminals 8 | . 8 . Fabricators . | . . . Repair Stations . | . . . Recycling Units . | . . . Scanalyzers . | . . . Garrison Access . | . . . Terminal Hacks 4 | . 4 . Part Schematic 1 | . 1 . Robot Analysis 1 | . 1 . Prototype ID Bank 1 | . 1 . Locate Traps 1 | . 1 . Fabricator Hacks . | . . . Repair Station Hacks . | . . . Recycling Unit Hacks . | . . . Scanalyzer . | . . . Garrison Access Hacks . | . . . Unauthorized Hacks . | . . . Terminals . | . . . Fabricators . | . . . Repair Stations . | . . . Recycling Units . | . . . Scanalyzers . | . . . Garrison Access . | . . . Data Cores Recovered 1 | . 1 . Used . | . . . Hacking Detections 3 | . 3 . Full Trace Events 3 | . 3 . Feedback Events . | . . . Feedback Blocked . | . . . Robot Schematics Acquired . | . . . Robots Built . | . . . Authchips . | . . . Time . | . . . Total Robot Build Rating . | . . . Part Schematics Acquired 1 | . 1 . Parts Built . | . . . Authchips . | . . . Time . | . . . Total Part Build Rating . | . . . Parts Repaired . | . . . Time . | . . . Parts Recycled . | . . . Recycled Matter . | . . . Retrieved Matter . | . . . Retrieved Components . | . . . Parts Scanalyzed . | . . . Part Schematics Acquired . | . . . Parts Damaged . | . . . Bothacking | -11 -10 -10 ------------ Run | Yrd Mat Sub Used RIF Installer . | . . . Robots Hacked . | . . . Non-combat . | . . . Combat . | . . . Robot Hacks Applied . | . . . Relay Couplers Released . | . . . Fabnet Peak Effective % . | . . . Robots Rewired . | . . . Allies Hacked . | . . . Hacks Repelled . | . . . Allies | -11 -10 -10 -------- Run | Yrd Mat Sub Total Allies . | . . . Largest Group . | . . . Highest-Rated Group . | . . . Highest-Rated Ally . | . . . Total Orders . | . . . Ally Attacks . | . . . Total Damage . | . . . Kills . | . . . Allies Corrupted . | . . . Allies Melted . | . . . Intel | -11 -10 -10 ------- Run | Yrd Mat Sub Robot Analysis Total 1 | . 1 . Derelict Logs Recovered . | . . . Drone Launches . | . . . Drone Recoveries . | . . . Exploration | -11 -10 -10 ------------- Run | Yrd Mat Sub Turns Passed 820 | 195 459 166 Spaces Moved 601 | 103 378 120 Core 4 | 3 . 1 Treads . | . . . Legs . | . . . Wheels 597 | 100 378 119 Hover . | . . . Flight . | . . . Fastest Speed 50 | 50 80 50 Average Speed 91 | 80 89 104 Slowest Speed 110 | 100 95 110 Overloaded Moves . | . . . Propulsion Burnouts . | . . . Robots Hopped . | . . . Cave-ins Triggered . | . . . Exploration Rate (%) 21 | 5 53 6 Regions Visited 2 Branch Regions 1 Pre-discovered Areas . | . . . Known Exits Taken . | . . . Unknown Exits Taken 2 | 1 1 . Scrap Searched 7 | . . 7 Spaces Dug 10 | 10 . . Terrain Destroyed 12 | 12 . . Melee . | . . . Projectile 12 | 12 . . AOE . | . . . Terrain Rammed . | . . . Walls Destroyed . | . . . Machines Disabled . | . . . Actions | -11 -10 -10 --------- Run | Yrd Mat Sub Total 784 | 149 481 154 Wait 79 | . 75 4 Move 599 | 102 377 120 Hop . | . . . Pick Up 16 | 9 2 5 Fast Attach 15 | 7 5 3 Attach 4 | 1 1 2 Detach 9 | . 6 3 Swap 7 | 3 2 2 Drop 16 | 4 4 8 Fire 36 | 23 9 4 Melee . | . . . Ram 3 | . . 3 Kick . | . . . Crush . | . . . Escape Stasis . | . . . Rewire . | . . . Trap . | . . . Miscellaneous . | . . . Route ------- -11/Scrapyard -10/Materials (discovered 3 exits: [*Mat] / [*Min] / [*Sub]) -10/Subcaves History --------- Turn | Location | Event 11 | -11/Scrapyard | Discovered new exit (range 15) 196 | -11/Scrapyard | Entered Materials 314 | -10/Materials | Build established: Mutant 340 | -10/Materials | Discovered new exit (range 16) 423 | -10/Materials | Discovered new exit (range 8) 440 | -10/Materials | Discovered new exit (range 13) 599 | -10/Materials | Central database locked down 655 | -10/Materials | Entered Subcaves 803 | -10/Subcaves | A swath of the cavern ceiling suddenly collapsed 804 | -10/Subcaves | Ambushed by swarm of Subdwellers 804 | -10/Subcaves | Ambushed by Subdwellers from Twisted Machinery 804 | -10/Subcaves | Ambushed by Subdwellers from Twisted Machinery 804 | -10/Subcaves | Ambushed by Subdwellers from Twisted Machinery 804 | -10/Subcaves | Ambushed by Subdwellers from Twisted Machinery 819 | -10/Subcaves | Core integrity fell below 50% 820 | -10/Subcaves | Core integrity fell below 20% 821 | -10/Subcaves | Destroyed by KL-QPG(R) with Subdweller Machine Gun Last Messages --------------- 00813_ Wheel crushed and broken. 00813_ Lrg. Storage Unit crushed and broken. 00813_ Lgt. Armor Plating crushed and broken. 00813_ Lgt. Ion Engine crushed and broken. 00813_ Barrage Gun crushed and broken. 00813_ Lgt. Cannon crushed and broken. 00813_ Sub. Optics crushed and broken. 00813_ Wheel crushed and broken. 00814_ Dropped Structural Scanner. 00814_ Structural Scanner crushed and broken. 00815_ XT-2AJ(R) affixes Scrap Shield Fragment to Scrap Shield. 00815_ Slammed into LV-DP6(R). 00815_ Destabilizing: System corrupted (+1). 00816_ Critical hit (Destroy). 00817_ Scrap Shield destroyed. 00818_ Slammed into LV-DP6(R). 00818_ F8-404(R) destroyed. 00819_ Acquired 2 matter. 00820_ Slammed into CK-JOW(R). 00820_ K2-9V8(R) destroyed. Map ----- +----------------------------------------------------+ | ?????????????????????????????????????????????????? | | ?????????????????????????????????????????????????? | | ?????????????????????????????????????????????????? | | ?????????????????????????????????????????????????? | | ?????????????????????????????????????????????????? | | ?????????????????????????????????????????????????? | | ?????????????????????????????????????????????????? | | ?????????????????????????????????????????????????? | | ?????????????????????????????????????????????????? | | ?????????????????????????????????????????????????? | | ?????????????????????????????????????????????????? | | ?????????????????????????????????????????????????? | | ?????????????????????????????????????????????????? | | ?????????????????????????????????????????????????? | | ?????????????????????????????????????????????????? | | ?????????????????????????????????????????????????? | | ?????????????????????????????????????????????????? | | ?????????????????????????????????????????????????? | | ????????????????????????????####?????????????????? | | ????????????????????????????#####????????????????? | | ????????????????????????? ### #####????####??##### | | ?????????????????????????#### ####????########### | | ????????????????????? ### ##????##"$####"" | | ???????????????# ###"#####"## ##??????#" ###"" | | ???????????????## ####R##### ###????????? #[ | | ???????????????##% "##%@RR####???????##" #%# = | | ???????????????## ????##RRRR%####?????###### ###% | | ??????????????????????####R######?????###" #### | | ??????????????????????########"######?## [ & ] | | ????????????????????????####" ######?##% ##"%# | | ????????????????????????### ##?### [ # | | ????????????????????????## ######" ## | | ????????????????????????## ##########" ## | | ????????????????????????##### ## ###### "## | | ????????????????????????####### ### " | | ???????????????????????????##### | | ?????????????????????????????#### ##### ### | | ??????????????????????????????########## ##"""" | | ???????????????????????????????######## """" | | ?????????????????????????????????????## """" | | ?????????????????????????????????????### ### " | | ?????????????????????????????????????### #### | | ??????????????????????????????????????##### ##### | | ??????????????????????????????????????############ | | ?????????????????????????????????????????######??# | | ?????????????????????????????????????????????????# | | ?????????????????????????????????????????????????# | | ?????????????????????????????????????????????????# | | ?????????????????????????????????????????????????? | | ?????????????????????????????????????????????????? | +----------------------------------------------------+ Best States ------------- Heat Dissipation 25 Energy Generation 10 Energy Capacity 250 Matter Stores 300 Matter Capacity 300 Sight Range 16 Terrain Scan Density 10 Evasion (%) 50 Item Schematics ----------------- Wheel | -10/Materials | Hacked Robot Schematics ------------------ None Fabricated ------------ Nothing Alien Tech Used ----------------- None Achievements -------------- None Challenges ------------ None Game ------ Seed EnergyTrackerLauncher Manual? 0 Play Time 00:23:33 Cumulative 16.9 hours Start 2024.03.05 @ 15:30:39 End 2024.03.06 @ 11:11:10 Sessions 2 Manual Loads 0 Difficulty Rogue Special Mode None Game No. 15 Rogue 11 Adventurer 2 Explorer 2 Win Type - Total 0 Types 0/0/0/0/0/0/0/0/0 Lore% 13 Gallery% 19 Achievement% 18 Wizard Run 0 Options --------- Layout 0 ASCII 0 Keyboard 1 Movement Arrows Keybinds 0 Fullscreen 2 Font 18/SmallcapsGlow Map View 76x50 Zoom Use 0% Tactical HUD 1 Map Filters NONE Filters NONE Steam 1 RUN: 2ef64ea6-4d7c-414b-9879-a5f00f0d0bc4